[Event "Titled Tuesday Blitz January 03 Early 2023"]
[White "Coelho, Ramyres Santana"]
[Black "Naroditsky, Daniel"]
[WhiteFideId "2120690"]
[BlackFideId "2026961"]
[WhiteElo "1981"]
[BlackElo "2618"]
[Result "0-1"]
[Round "03"]
[TimeControl "180+2"]
[Date "2023.01.03"]
[WhiteClock "0:01:57"]
[BlackClock "0:02:34"]

1. e4 {[%clk 0:02:59]}  c6 {[%clk 0:02:56]} 2. d4 {[%clk 0:02:55]}  d5 {[%clk 0:02:57]} 3. Nc3 {[%clk 0:02:54]}  dxe4 {[%clk 0:02:57]} 4. Nxe4 {[%clk 0:02:53]}  Nf6 {[%clk 0:02:57]} 5. Nxf6+ {[%clk 0:02:53]}  exf6 {[%clk 0:02:58]} 6. Nf3 {[%clk 0:02:54]}  Bd6 {[%clk 0:02:58]} 7. Be3 {[%clk 0:02:55]}  O-O {[%clk 0:02:58]} 8. Qd2 {[%clk 0:02:55]}  Be6 {[%clk 0:02:45]} 9. Bd3 {[%clk 0:02:50]}  Qc7 {[%clk 0:02:44]} 10. h3 {[%clk 0:02:49]}  Bd5 {[%clk 0:02:44]} 11. c4 {[%clk 0:02:45]}  a5 {[%clk 0:02:44]} 12. cxd5 {[%clk 0:02:45]}  Bb4 {[%clk 0:02:44]} 13. O-O {[%clk 0:02:36]}  Bxd2 {[%clk 0:02:44]} 14. Nxd2 {[%clk 0:02:34]}  cxd5 {[%clk 0:02:44]} 15. Rac1 {[%clk 0:02:34]}  Nc6 {[%clk 0:02:44]} 16. g4 {[%clk 0:02:27]}  Rfe8 {[%clk 0:02:42]} 17. a3 {[%clk 0:02:10]}  Rxe3 {[%clk 0:02:41]} 18. fxe3 {[%clk 0:02:08]}  Qg3+ {[%clk 0:02:40]} 19. Kh1 {[%clk 0:02:08]}  Qxh3+ {[%clk 0:02:40]} 20. Kg1 {[%clk 0:02:08]}  Qxe3+ {[%clk 0:02:41]} 21. Rf2 {[%clk 0:02:07]}  Qxd3 {[%clk 0:02:41]} 22. Nf3 {[%clk 0:02:05]}  Nxd4 {[%clk 0:02:37]} 23. Nxd4 {[%clk 0:02:04]}  Qxd4 {[%clk 0:02:38]} 24. Kf1 {[%clk 0:01:57]}  Qxg4 {[%clk 0:02:37]} 25. Rfc2 {[%clk 0:01:58]}  h5 {[%clk 0:02:37]} 26. Rg2 {[%clk 0:01:57]}  Qf4+ {[%clk 0:02:34]} 0-1


[Site "https://www.chess.com"]

[Event "Titled Tuesday Blitz January 03 Early 2023"]
[White "rhinobritos"]
[Black "Salimova, Nurgyul"]
[BlackFideId "2915138"]
[WhiteElo "2994"]
[BlackElo "2391"]
[Result "0-1"]
[Round "03"]
[TimeControl "180+2"]
[Date "2023.01.03"]
[WhiteClock "0:00:02"]
[BlackClock "0:00:03"]

1. d4 {[%clk 0:02:48]}  Nf6 {[%clk 0:02:59]} 2. c4 {[%clk 0:02:48]}  e6 {[%clk 0:02:58]} 3. Nc3 {[%clk 0:02:42]}  Bb4 {[%clk 0:02:58]} 4. e3 {[%clk 0:02:42]}  O-O {[%clk 0:02:57]} 5. Ne2 {[%clk 0:02:42]}  d5 {[%clk 0:02:53]} 6. a3 {[%clk 0:02:40]}  Bd6 {[%clk 0:02:52]} 7. Ng3 {[%clk 0:02:35]}  c6 {[%clk 0:02:49]} 8. Bd3 {[%clk 0:02:29]}  dxc4 {[%clk 0:02:36]} 9. Bxc4 {[%clk 0:02:29]}  e5 {[%clk 0:02:37]} 10. O-O {[%clk 0:02:28]}  exd4 {[%clk 0:02:34]} 11. exd4 {[%clk 0:02:26]}  Nbd7 {[%clk 0:02:23]} 12. h3 {[%clk 0:02:17]}  Nb6 {[%clk 0:02:19]} 13. Ba2 {[%clk 0:02:16]}  Re8 {[%clk 0:02:07]} 14. Bg5 {[%clk 0:02:16]}  h6 {[%clk 0:02:03]} 15. Bxf6 {[%clk 0:02:13]}  Qxf6 {[%clk 0:02:04]} 16. Nge4 {[%clk 0:02:13]}  Qg6 {[%clk 0:01:53]} 17. Qf3 {[%clk 0:01:59]}  Bc7 {[%clk 0:01:40]} 18. Rfe1 {[%clk 0:01:53]}  Be6 {[%clk 0:01:18]} 19. Bxe6 {[%clk 0:01:39]}  Qxe6 {[%clk 0:01:19]} 20. Re2 {[%clk 0:01:39]}  Qc4 {[%clk 0:01:06]} 21. Rae1 {[%clk 0:01:38]}  Rf8 {[%clk 0:01:00]} 22. Nc5 {[%clk 0:01:31]}  Qxd4 {[%clk 0:00:54]} 23. Nxb7 {[%clk 0:01:31]}  Nd5 {[%clk 0:00:39]} 24. Nxd5 {[%clk 0:01:09]}  cxd5 {[%clk 0:00:39]} 25. Re7 {[%clk 0:01:10]}  Rac8 {[%clk 0:00:18]} 26. b4 {[%clk 0:01:01]}  Bb6 {[%clk 0:00:12]} 27. Nd6 {[%clk 0:01:00]}  Rc2 {[%clk 0:00:08]} 28. Rf1 {[%clk 0:00:57]}  Rc3 {[%clk 0:00:03]} 29. Qf5 {[%clk 0:00:53]}  g6 {[%clk 0:00:03]} 30. Qd7 {[%clk 0:00:30]}  Qf4 {[%clk 0:00:03]} 31. Ne8 {[%clk 0:00:07]}  Rc1 {[%clk 0:00:03]} 32. Rxc1 {[%clk 0:00:01]}  Qxc1+ {[%clk 0:00:03]} 33. Kh2 {[%clk 0:00:02]}  Qf4+ {[%clk 0:00:03]} 34. Kh1 {[%clk 0:00:02]}  Qc1+ {[%clk 0:00:03]} 35. Kh2 {[%clk 0:00:03]}  Qf4+ {[%clk 0:00:03]} 36. Kh1 {[%clk 0:00:03]}  Qxf2 {[%clk 0:00:04]} 37. Nf6+ {[%clk 0:00:02]}  Qxf6 {[%clk 0:00:03]} 0-1


[Site "https://www.chess.com"]

[Event "Titled Tuesday Blitz January 03 Early 2023"]
[White "Papp, Levente"]
[Black "Oliveira, Silvio Eduardo"]
[WhiteFideId "751243"]
[BlackFideId "2111560"]
[WhiteElo "2353"]
[BlackElo "2297"]
[Result "0-1"]
[Round "03"]
[TimeControl "180+2"]
[Date "2023.01.03"]
[WhiteClock "0:00:03"]
[BlackClock "0:00:07"]

1. c4 {[%clk 0:03:00]}  e6 {[%clk 0:02:54]} 2. Nf3 {[%clk 0:02:59]}  d5 {[%clk 0:02:55]} 3. g3 {[%clk 0:02:59]}  Nf6 {[%clk 0:02:54]} 4. b3 {[%clk 0:02:59]}  b6 {[%clk 0:02:47]} 5. cxd5 {[%clk 0:02:55]}  exd5 {[%clk 0:02:39]} 6. Bb2 {[%clk 0:02:55]}  Bd6 {[%clk 0:02:36]} 7. Bg2 {[%clk 0:02:55]}  O-O {[%clk 0:02:35]} 8. O-O {[%clk 0:02:55]}  Bb7 {[%clk 0:02:28]} 9. d3 {[%clk 0:02:48]}  c5 {[%clk 0:02:22]} 10. Nbd2 {[%clk 0:02:43]}  Nc6 {[%clk 0:02:19]} 11. e4 {[%clk 0:02:36]}  d4 {[%clk 0:02:14]} 12. Nh4 {[%clk 0:02:08]}  Re8 {[%clk 0:02:14]} 13. f4 {[%clk 0:02:06]}  Bf8 {[%clk 0:02:14]} 14. a4 {[%clk 0:01:57]}  g6 {[%clk 0:02:14]} 15. Nc4 {[%clk 0:01:56]}  Nd7 {[%clk 0:02:09]} 16. e5 {[%clk 0:01:53]}  a6 {[%clk 0:02:06]} 17. b4 {[%clk 0:00:56]}  cxb4 {[%clk 0:01:58]} 18. Bxd4 {[%clk 0:00:41]}  Nxd4 {[%clk 0:01:52]} 19. Bxb7 {[%clk 0:00:40]}  Ra7 {[%clk 0:01:50]} 20. Bg2 {[%clk 0:00:39]}  b3 {[%clk 0:01:44]} 21. Kh1 {[%clk 0:00:30]}  Nc2 {[%clk 0:01:37]} 22. Rb1 {[%clk 0:00:29]}  Nc5 {[%clk 0:01:34]} 23. Rxb3 {[%clk 0:00:19]}  Nxb3 {[%clk 0:01:34]} 24. Qxc2 {[%clk 0:00:19]}  Nd4 {[%clk 0:01:35]} 25. Qf2 {[%clk 0:00:17]}  Bc5 {[%clk 0:01:32]} 26. Qb2 {[%clk 0:00:13]}  b5 {[%clk 0:01:29]} 27. Ne3 {[%clk 0:00:13]}  bxa4 {[%clk 0:01:25]} 28. Nd5 {[%clk 0:00:13]}  Re6 {[%clk 0:01:15]} 29. Qc3 {[%clk 0:00:12]}  Rd7 {[%clk 0:01:01]} 30. Nf6+ {[%clk 0:00:12]}  Rxf6 {[%clk 0:00:57]} 31. exf6 {[%clk 0:00:12]}  Bf8 {[%clk 0:00:54]} 32. f5 {[%clk 0:00:06]}  a3 {[%clk 0:00:51]} 33. fxg6 {[%clk 0:00:06]}  hxg6 {[%clk 0:00:51]} 34. Nxg6 {[%clk 0:00:04]}  fxg6 {[%clk 0:00:49]} 35. Qc4+ {[%clk 0:00:04]}  Kh8 {[%clk 0:00:46]} 36. Rf4 {[%clk 0:00:04]}  g5 {[%clk 0:00:41]} 37. Rf1 {[%clk 0:00:04]}  Qc7 {[%clk 0:00:37]} 38. Qa4 {[%clk 0:00:03]}  Ne2 {[%clk 0:00:29]} 39. Be4 {[%clk 0:00:03]}  Nc3 {[%clk 0:00:27]} 40. Qxa6 {[%clk 0:00:03]}  Nxe4 {[%clk 0:00:25]} 41. dxe4 {[%clk 0:00:04]}  Rd2 {[%clk 0:00:20]} 42. Qe6 {[%clk 0:00:04]}  Qh7 {[%clk 0:00:17]} 43. h3 {[%clk 0:00:04]}  a2 {[%clk 0:00:15]} 44. f7 {[%clk 0:00:04]}  Qg7 {[%clk 0:00:12]} 45. e5 {[%clk 0:00:04]}  Rf2 {[%clk 0:00:09]} 46. Ra1 {[%clk 0:00:03]}  Qh7 {[%clk 0:00:07]} 47. Qd5 {[%clk 0:00:03]}  Qc2 {[%clk 0:00:07]} 48. Kg1 {[%clk 0:00:02]}  Rh2 {[%clk 0:00:06]} 49. Qf3 {[%clk 0:00:02]}  Rxh3 {[%clk 0:00:06]} 50. Qf6+ {[%clk 0:00:02]}  Kh7 {[%clk 0:00:06]} 51. Qf3 {[%clk 0:00:02]}  Qh2+ {[%clk 0:00:06]} 52. Kf1 {[%clk 0:00:02]}  Qh1+ {[%clk 0:00:06]} 53. Ke2 {[%clk 0:00:03]}  Qxa1 {[%clk 0:00:06]} 54. Qf5+ {[%clk 0:00:03]}  Kh6 {[%clk 0:00:05]} 55. Qe6+ {[%clk 0:00:03]}  Kg7 {[%clk 0:00:05]} 56. Qf6+ {[%clk 0:00:03]}  Kh7 {[%clk 0:00:06]} 57. Qf5+ {[%clk 0:00:04]}  Kh8 {[%clk 0:00:06]} 58. Qxh3+ {[%clk 0:00:04]}  Kg7 {[%clk 0:00:06]} 59. Qf5 {[%clk 0:00:04]}  Qb2+ {[%clk 0:00:07]} 60. Kf3 {[%clk 0:00:05]}  Qb3+ {[%clk 0:00:06]} 61. Kg4 {[%clk 0:00:04]}  Qxf7 {[%clk 0:00:06]} 62. Qxg5+ {[%clk 0:00:04]}  Qg6 {[%clk 0:00:07]} 63. e6 {[%clk 0:00:03]}  a1=Q {[%clk 0:00:07]} 0-1


[Site "https://www.chess.com"]

[Event "Titled Tuesday Blitz January 03 Early 2023"]
[White "Sharifov, Mekhriddin"]
[Black "Lashkin, Jegor"]
[WhiteFideId "14701545"]
[BlackFideId "13907808"]
[WhiteElo "2209"]
[BlackElo "2416"]
[Result "0-1"]
[Round "03"]
[TimeControl "180+2"]
[Date "2023.01.03"]
[WhiteClock "0:00:11"]
[BlackClock "0:00:15"]

1. e4 {[%clk 0:02:54]}  c5 {[%clk 0:02:59]} 2. Nf3 {[%clk 0:02:54]}  d6 {[%clk 0:02:59]} 3. d4 {[%clk 0:02:53]}  cxd4 {[%clk 0:03:00]} 4. Nxd4 {[%clk 0:02:54]}  Nf6 {[%clk 0:03:00]} 5. Nc3 {[%clk 0:02:54]}  a6 {[%clk 0:03:01]} 6. Bg5 {[%clk 0:02:53]}  e6 {[%clk 0:02:59]} 7. f4 {[%clk 0:02:53]}  Qb6 {[%clk 0:02:58]} 8. Qd2 {[%clk 0:02:47]}  Qxb2 {[%clk 0:02:58]} 9. Rb1 {[%clk 0:02:47]}  Qa3 {[%clk 0:02:58]} 10. f5 {[%clk 0:02:48]}  Nc6 {[%clk 0:02:50]} 11. fxe6 {[%clk 0:02:48]}  Bxe6 {[%clk 0:02:46]} 12. Rxb7 {[%clk 0:02:41]}  Nxd4 {[%clk 0:02:43]} 13. Qxd4 {[%clk 0:02:42]}  Be7 {[%clk 0:02:42]} 14. Be2 {[%clk 0:02:39]}  Rc8 {[%clk 0:02:40]} 15. Bd2 {[%clk 0:02:19]}  Nd7 {[%clk 0:02:04]} 16. Nd5 {[%clk 0:01:46]}  Bxd5 {[%clk 0:01:58]} 17. exd5 {[%clk 0:01:45]}  Bf6 {[%clk 0:00:50]} 18. Qg4 {[%clk 0:01:42]}  Rd8 {[%clk 0:00:49]} 19. O-O {[%clk 0:01:32]}  Ne5 {[%clk 0:00:41]} 20. Qb4 {[%clk 0:01:32]}  Qxa2 {[%clk 0:00:28]} 21. c4 {[%clk 0:00:50]}  O-O {[%clk 0:00:22]} 22. Qa5 {[%clk 0:00:33]}  Qc2 {[%clk 0:00:20]} 23. Qc3 {[%clk 0:00:21]}  Nf3+ {[%clk 0:00:19]} 24. Rxf3 {[%clk 0:00:18]}  Bxc3 {[%clk 0:00:19]} 25. Bxc3 {[%clk 0:00:18]}  Qxe2 {[%clk 0:00:18]} 26. Rg3 {[%clk 0:00:19]}  g6 {[%clk 0:00:17]} 27. h3 {[%clk 0:00:19]}  Qxc4 {[%clk 0:00:15]} 28. Kh2 {[%clk 0:00:11]}  Qxd5 {[%clk 0:00:15]} 0-1


[Site "https://www.chess.com"]

[Event "Titled Tuesday Blitz January 03 Early 2023"]
[White "Leenhouts, Koen"]
[Black "Bacrot, Etienne"]
[WhiteFideId "1008439"]
[BlackFideId "605506"]
[WhiteElo "2447"]
[BlackElo "2667"]
[Result "1/2-1/2"]
[Round "03"]
[TimeControl "180+2"]
[Date "2023.01.03"]
[WhiteClock "0:00:08"]
[BlackClock "0:00:05"]

1. d4 {[%clk 0:03:00]}  Nf6 {[%clk 0:02:59]} 2. c4 {[%clk 0:03:00]}  e6 {[%clk 0:03:00]} 3. Nc3 {[%clk 0:02:59]}  d5 {[%clk 0:03:00]} 4. cxd5 {[%clk 0:02:56]}  exd5 {[%clk 0:03:00]} 5. Bg5 {[%clk 0:02:55]}  Be7 {[%clk 0:03:00]} 6. Qc2 {[%clk 0:02:54]}  c6 {[%clk 0:03:00]} 7. e3 {[%clk 0:02:53]}  O-O {[%clk 0:02:58]} 8. Bd3 {[%clk 0:02:52]}  h6 {[%clk 0:02:58]} 9. Bh4 {[%clk 0:02:50]}  Be6 {[%clk 0:02:49]} 10. Nge2 {[%clk 0:02:44]}  Ne8 {[%clk 0:02:46]} 11. Bg3 {[%clk 0:02:40]}  Nd6 {[%clk 0:02:46]} 12. Nf4 {[%clk 0:02:36]}  Bc8 {[%clk 0:02:39]} 13. O-O {[%clk 0:02:33]}  a5 {[%clk 0:02:33]} 14. Rae1 {[%clk 0:02:28]}  Na6 {[%clk 0:02:31]} 15. a3 {[%clk 0:02:27]}  Nc7 {[%clk 0:02:30]} 16. f3 {[%clk 0:02:20]}  b5 {[%clk 0:02:04]} 17. e4 {[%clk 0:02:15]}  b4 {[%clk 0:02:04]} 18. Nce2 {[%clk 0:02:08]}  Bd7 {[%clk 0:01:34]} 19. Nh5 {[%clk 0:01:33]}  dxe4 {[%clk 0:01:25]} 20. fxe4 {[%clk 0:01:31]}  Bg4 {[%clk 0:01:24]} 21. Nhf4 {[%clk 0:01:19]}  bxa3 {[%clk 0:01:25]} 22. bxa3 {[%clk 0:01:17]}  Ndb5 {[%clk 0:01:25]} 23. h3 {[%clk 0:01:07]}  Bxe2 {[%clk 0:01:16]} 24. Nxe2 {[%clk 0:01:04]}  Nxd4 {[%clk 0:01:10]} 25. Nxd4 {[%clk 0:00:56]}  Qxd4+ {[%clk 0:01:08]} 26. Kh1 {[%clk 0:00:57]}  Ne6 {[%clk 0:00:56]} 27. Bc4 {[%clk 0:00:56]}  Qc5 {[%clk 0:00:48]} 28. Qa2 {[%clk 0:00:50]}  Qxa3 {[%clk 0:00:44]} 29. Bxe6 {[%clk 0:00:47]}  Qxg3 {[%clk 0:00:40]} 30. Bxf7+ {[%clk 0:00:42]}  Kh8 {[%clk 0:00:39]} 31. e5 {[%clk 0:00:37]}  Bg5 {[%clk 0:00:27]} 32. Re4 {[%clk 0:00:33]}  Rad8 {[%clk 0:00:22]} 33. e6 {[%clk 0:00:29]}  Be7 {[%clk 0:00:14]} 34. Rg4 {[%clk 0:00:26]}  Qe5 {[%clk 0:00:12]} 35. Qa1 {[%clk 0:00:19]}  Qxa1 {[%clk 0:00:09]} 36. Rxa1 {[%clk 0:00:20]}  Ra8 {[%clk 0:00:08]} 37. Rga4 {[%clk 0:00:19]}  Rfd8 {[%clk 0:00:07]} 38. Rxa5 {[%clk 0:00:15]}  Rxa5 {[%clk 0:00:07]} 39. Rxa5 {[%clk 0:00:16]}  g6 {[%clk 0:00:02]} 40. Bxg6 {[%clk 0:00:14]}  Kg7 {[%clk 0:00:02]} 41. Bf7 {[%clk 0:00:14]}  c5 {[%clk 0:00:02]} 42. Ra4 {[%clk 0:00:09]}  Rd4 {[%clk 0:00:02]} 43. Rxd4 {[%clk 0:00:08]}  cxd4 {[%clk 0:00:02]} 44. Kg1 {[%clk 0:00:09]}  Kf6 {[%clk 0:00:03]} 45. Kf1 {[%clk 0:00:09]}  Ke5 {[%clk 0:00:03]} 46. Ke2 {[%clk 0:00:09]}  Ke4 {[%clk 0:00:03]} 47. Bg6+ {[%clk 0:00:09]}  Ke5 {[%clk 0:00:03]} 48. Bf7 {[%clk 0:00:09]}  Ke4 {[%clk 0:00:04]} 49. g4 {[%clk 0:00:09]}  d3+ {[%clk 0:00:04]} 50. Kd1 {[%clk 0:00:09]}  Ke3 {[%clk 0:00:04]} 51. Bg6 {[%clk 0:00:08]}  d2 {[%clk 0:00:04]} 52. Bf5 {[%clk 0:00:08]}  Bf6 {[%clk 0:00:04]} 53. Bg6 {[%clk 0:00:08]}  Be7 {[%clk 0:00:05]} 54. Bf5 {[%clk 0:00:08]}  Bg5 {[%clk 0:00:05]} 55. Bg6 {[%clk 0:00:08]}  Be7 {[%clk 0:00:05]} 1/2-1/2


[Site "https://www.chess.com"]

[Event "Titled Tuesday Blitz January 03 Early 2023"]
[White "Tan, Zhongyi"]
[Black "Riff, Vincent"]
[WhiteFideId "8603642"]
[BlackFideId "617776"]
[WhiteElo "2517"]
[BlackElo "2383"]
[Result "1-0"]
[Round "03"]
[TimeControl "180+2"]
[Date "2023.01.03"]
[WhiteClock "0:01:00"]
[BlackClock "0:01:44"]

1. e4 {[%clk 0:03:00]}  c5 {[%clk 0:02:57]} 2. Nf3 {[%clk 0:02:59]}  Nc6 {[%clk 0:02:57]} 3. Bb5 {[%clk 0:02:56]}  d6 {[%clk 0:02:56]} 4. O-O {[%clk 0:02:55]}  Bd7 {[%clk 0:02:56]} 5. Re1 {[%clk 0:02:54]}  Nf6 {[%clk 0:02:55]} 6. c3 {[%clk 0:02:50]}  a6 {[%clk 0:02:55]} 7. Bf1 {[%clk 0:02:49]}  Bg4 {[%clk 0:02:51]} 8. h3 {[%clk 0:02:49]}  Bh5 {[%clk 0:02:51]} 9. d3 {[%clk 0:02:48]}  e6 {[%clk 0:02:50]} 10. Be3 {[%clk 0:02:38]}  Be7 {[%clk 0:02:46]} 11. Nbd2 {[%clk 0:02:37]}  O-O {[%clk 0:02:38]} 12. d4 {[%clk 0:02:35]}  cxd4 {[%clk 0:02:36]} 13. cxd4 {[%clk 0:02:36]}  d5 {[%clk 0:02:36]} 14. e5 {[%clk 0:02:36]}  Nd7 {[%clk 0:02:35]} 15. a3 {[%clk 0:02:21]}  Rc8 {[%clk 0:02:31]} 16. Bd3 {[%clk 0:02:20]}  Bg6 {[%clk 0:02:30]} 17. Bxg6 {[%clk 0:02:16]}  hxg6 {[%clk 0:02:29]} 18. g3 {[%clk 0:02:13]}  Na5 {[%clk 0:02:27]} 19. h4 {[%clk 0:02:09]}  Nc4 {[%clk 0:02:26]} 20. Rb1 {[%clk 0:02:04]}  Ndb6 {[%clk 0:02:23]} 21. Kg2 {[%clk 0:01:54]}  f5 {[%clk 0:02:05]} 22. exf6 {[%clk 0:01:40]}  Bxf6 {[%clk 0:02:03]} 23. Bg5 {[%clk 0:01:37]}  Nxd2 {[%clk 0:02:01]} 24. Qxd2 {[%clk 0:01:35]}  Nc4 {[%clk 0:02:01]} 25. Qd3 {[%clk 0:01:30]}  Kh7 {[%clk 0:01:59]} 26. Rxe6 {[%clk 0:01:27]}  Qd7 {[%clk 0:01:58]} 27. Rbe1 {[%clk 0:01:07]}  Rc6 {[%clk 0:01:51]} 28. Rxc6 {[%clk 0:01:04]}  bxc6 {[%clk 0:01:51]} 29. h5 {[%clk 0:01:01]}  Qf7 {[%clk 0:01:44]} 30. hxg6+ {[%clk 0:01:00]} 1-0


[Site "https://www.chess.com"]

[Event "Titled Tuesday Blitz January 03 Early 2023"]
[White "Krivonosov, Oleg"]
[Black "Arias, Juan Cruz"]
[WhiteFideId "11600349"]
[BlackFideId "118540"]
[WhiteElo "2359"]
[BlackElo "2320"]
[Result "1-0"]
[Round "03"]
[TimeControl "180+2"]
[Date "2023.01.03"]
[WhiteClock "0:01:31"]
[BlackClock "0:00:53"]

1. Nf3 {[%clk 0:03:00]}  d5 {[%clk 0:02:59]} 2. d4 {[%clk 0:03:00]}  Nf6 {[%clk 0:02:59]} 3. c4 {[%clk 0:02:59]}  e6 {[%clk 0:02:58]} 4. g3 {[%clk 0:02:59]}  dxc4 {[%clk 0:02:58]} 5. Qa4+ {[%clk 0:02:58]}  Bd7 {[%clk 0:02:33]} 6. Qxc4 {[%clk 0:02:57]}  c5 {[%clk 0:02:33]} 7. dxc5 {[%clk 0:02:55]}  Qc7 {[%clk 0:02:18]} 8. Bf4 {[%clk 0:02:47]}  Qxc5 {[%clk 0:02:17]} 9. Qxc5 {[%clk 0:02:47]}  Bxc5 {[%clk 0:02:18]} 10. Bg2 {[%clk 0:02:46]}  Bc6 {[%clk 0:02:14]} 11. O-O {[%clk 0:02:44]}  Nbd7 {[%clk 0:02:15]} 12. Nc3 {[%clk 0:02:41]}  O-O {[%clk 0:02:12]} 13. Ne5 {[%clk 0:02:40]}  Bxg2 {[%clk 0:02:12]} 14. Kxg2 {[%clk 0:02:35]}  Nxe5 {[%clk 0:02:12]} 15. Bxe5 {[%clk 0:02:35]}  Nd7 {[%clk 0:01:59]} 16. Bf4 {[%clk 0:02:33]}  Nb6 {[%clk 0:01:49]} 17. Rad1 {[%clk 0:02:28]}  Rfd8 {[%clk 0:01:48]} 18. Bc7 {[%clk 0:02:13]}  Rxd1 {[%clk 0:01:29]} 19. Rxd1 {[%clk 0:02:14]}  Kf8 {[%clk 0:01:19]} 20. Ne4 {[%clk 0:02:08]}  Be7 {[%clk 0:01:16]} 21. Bxb6 {[%clk 0:01:49]}  axb6 {[%clk 0:01:16]} 22. a3 {[%clk 0:01:47]}  Ke8 {[%clk 0:01:15]} 23. Nd6+ {[%clk 0:01:45]}  Bxd6 {[%clk 0:01:14]} 24. Rxd6 {[%clk 0:01:46]}  Ra6 {[%clk 0:01:13]} 25. e4 {[%clk 0:01:44]}  e5 {[%clk 0:01:09]} 26. Kf3 {[%clk 0:01:40]}  Ke7 {[%clk 0:01:09]} 27. Rd2 {[%clk 0:01:34]}  Ra5 {[%clk 0:01:09]} 28. Ke3 {[%clk 0:01:33]}  Rb5 {[%clk 0:01:09]} 29. b4 {[%clk 0:01:32]}  f5 {[%clk 0:00:53]} 30. f3 {[%clk 0:01:31]} 1-0


[Site "https://www.chess.com"]

[Event "Titled Tuesday Blitz January 03 Early 2023"]
[White "Goltseva, Ekaterina"]
[Black "Borges Feria, Yasel"]
[WhiteFideId "24173770"]
[BlackFideId "3504921"]
[WhiteElo "2283"]
[BlackElo "2439"]
[Result "0-1"]
[Round "03"]
[TimeControl "180+2"]
[Date "2023.01.03"]
[WhiteClock "0:00:01"]
[BlackClock "0:00:36"]

1. d4 {[%clk 0:02:27]}  Nf6 {[%clk 0:02:59]} 2. c4 {[%clk 0:02:27]}  e6 {[%clk 0:02:59]} 3. g3 {[%clk 0:02:26]}  Bb4+ {[%clk 0:02:59]} 4. Nd2 {[%clk 0:02:25]}  O-O {[%clk 0:02:58]} 5. Bg2 {[%clk 0:02:26]}  a5 {[%clk 0:02:57]} 6. Nf3 {[%clk 0:02:25]}  d6 {[%clk 0:02:56]} 7. O-O {[%clk 0:02:26]}  Bxd2 {[%clk 0:02:56]} 8. Bxd2 {[%clk 0:02:25]}  Nbd7 {[%clk 0:02:54]} 9. Qc2 {[%clk 0:02:25]}  Re8 {[%clk 0:02:52]} 10. Bc3 {[%clk 0:02:24]}  d5 {[%clk 0:02:49]} 11. Nd2 {[%clk 0:02:15]}  c6 {[%clk 0:02:32]} 12. e4 {[%clk 0:02:13]}  Nxe4 {[%clk 0:02:28]} 13. Nxe4 {[%clk 0:02:13]}  dxe4 {[%clk 0:02:29]} 14. Bxe4 {[%clk 0:02:10]}  Nf6 {[%clk 0:02:29]} 15. Bg2 {[%clk 0:02:09]}  Bd7 {[%clk 0:02:13]} 16. Rad1 {[%clk 0:02:07]}  Rb8 {[%clk 0:02:13]} 17. Qd2 {[%clk 0:01:50]}  b6 {[%clk 0:02:13]} 18. Rfe1 {[%clk 0:01:35]}  h6 {[%clk 0:02:12]} 19. Qf4 {[%clk 0:01:34]}  Nh5 {[%clk 0:02:01]} 20. Qg4 {[%clk 0:01:16]}  Nf6 {[%clk 0:02:00]} 21. Qf3 {[%clk 0:01:16]}  b5 {[%clk 0:01:55]} 22. d5 {[%clk 0:01:07]}  exd5 {[%clk 0:01:50]} 23. Bxf6 {[%clk 0:01:04]}  Qxf6 {[%clk 0:01:37]} 24. Qxf6 {[%clk 0:01:03]}  gxf6 {[%clk 0:01:38]} 25. cxd5 {[%clk 0:01:00]}  c5 {[%clk 0:01:25]} 26. d6 {[%clk 0:00:53]}  c4 {[%clk 0:01:21]} 27. Re7 {[%clk 0:00:45]}  Rbd8 {[%clk 0:01:15]} 28. Bd5 {[%clk 0:00:36]}  Rxe7 {[%clk 0:01:02]} 29. dxe7 {[%clk 0:00:35]}  Re8 {[%clk 0:01:03]} 30. Re1 {[%clk 0:00:21]}  Be6 {[%clk 0:00:59]} 31. Bxe6 {[%clk 0:00:17]}  Rxe7 {[%clk 0:00:59]} 32. Bxf7+ {[%clk 0:00:12]}  Kxf7 {[%clk 0:01:00]} 33. Rc1 {[%clk 0:00:05]}  Re2 {[%clk 0:00:45]} 34. a4 {[%clk 0:00:05]}  Rxb2 {[%clk 0:00:45]} 35. axb5 {[%clk 0:00:05]}  Rb4 {[%clk 0:00:46]} 36. b6 {[%clk 0:00:04]}  Ke6 {[%clk 0:00:46]} 37. Ra1 {[%clk 0:00:02]}  a4 {[%clk 0:00:38]} 38. b7 {[%clk 0:00:02]}  Kd5 {[%clk 0:00:39]} 39. Rxa4 {[%clk 0:00:02]}  Rxb7 {[%clk 0:00:38]} 40. Ra6 {[%clk 0:00:02]}  c3 {[%clk 0:00:36]} 41. Kf1 {[%clk 0:00:01]}  Rb1+ {[%clk 0:00:35]} 42. Ke2 {[%clk 0:00:01]}  c2 {[%clk 0:00:36]} 0-1


[Site "https://www.chess.com"]